bitfinex-derivatives/quotes_ETHF0:USTF0_20250327
["timestamp","ask_amount","ask_price","bid_price","bid_amount"]
[1743075900707,0.99129,2017.4,2017.3,0.9913]
[1743075900913,2.34409,2017.4,2017.3,2.3237]
[1743075901609,1.3528,2017.4,2017.3,2.3237]
[1743075902613,2.34405,2017.4,2017.3,2.3237]
[1743075904113,2.34405,2017.4,2017.3,0.9913]
[1743075904311,3.01445,2017.4,2017.3,0.9913]
[1743075905403,0.99139,2017.2,2017.1,0.99135]
[1743075905608,4.25539,2017.2,2017.1,0.99135]
[1743075905809,0.9914,2017.1,2017.0,42.46101]
[1743075906007,2.3423,2017.1,2017.0,43.82051]
[1743075906316,2.3423,2017.1,2017.0,43.15091]
[1743075906513,3.0511,2017.1,2017.0,40.8]
[1743075907416,0.99145,2017.0,2016.9,2.35096]
[1743075907620,1.3509,2017.0,2016.6,4.95809]
[1743075907814,3.9501,2016.9,2016.8,0.99155]
[1743075908021,3.9501,2016.9,2016.8,2.35105]
[1743075908207,5.301,2016.9,2016.8,2.35105]
[1743075908606,6.2925,2016.9,2016.8,2.35105]
[1743075909013,0.99155,2016.8,2016.7,43.17285]
[1743075909221,2.41825,2016.8,2016.7,43.17285]
[1743075913515,2.41825,2016.8,2016.7,41.79155]
[1743075913714,3.12935,2016.8,2016.7,40.8]
[1743075914023,3.2078,2016.5,2014.8,3.57854279]
[1743075914215,3.2078,2015.5,2015.4,0.99223]
[1743075914420,3.264,2015.8,2015.4,40.8]
[1743075914618,3.2078,2015.6,2015.5,2.31816]
[1743075915018,4.19994,2015.6,2015.5,2.31816]
[1743075915215,3.2078,2015.6,2014.5,9.1958]
[1743075915414,3.2078,2015.4,2015.3,0.99224]
[1743075915629,3.2078,2015.4,2015.2,3.18633]
[1743075915630,0.99228,2015.3,2015.2,0.7055]
[1743075915818,2.48086,2015.2,2014.8,0.7055]
[1743075916016,3.2078,2015.0,2014.6,14.13221249]
[1743075916211,1.3204,2014.9,2014.8,0.99253]
[1743075916923,2.31288,2014.9,2014.8,0.99253]
[1743075917114,3.8204,2014.9,2014.8,0.99253]
[1743075917314,1.3204,2014.9,2014.8,0.99253]
[1743075917514,4.6934,2014.9,2014.8,0.99253]
[1743075918118,3.2078,2015.0,2014.9,0.99248]
[1743075918321,3.2078,2015.4,2015.3,0.99228]
[1743075918915,0.00742629,2015.9,2015.6,0.99214]
[1743075919126,0.00742629,2015.9,2015.8,0.99204]
[1743075919311,1.34182629,2015.9,2015.8,0.99204]
[1743075919511,1.3344,2016.2,2016.1,0.99189]
[1743075919717,3.387,2016.4,2016.1,0.99189]
[1743075919718,1.3344,2016.4,2016.3,0.99179]
[1743075919925,0.40595872,2016.7,2016.6,0.99164]
[1743075920113,1.74035872,2016.7,2016.6,0.99164]
[1743075920318,1.74035872,2016.7,2016.6,41.79164]
[1743075920520,2.326,2016.7,2016.6,41.79164]
[1743075921017,2.326,2016.7,2016.6,40.8]
[1743075921218,2.326,2016.7,2016.6,41.79164]
[1743075921420,2.326,2016.7,2016.6,0.99164]
[1743075921615,2.326,2016.7,2016.4,0.00744491]
[1743075921616,0.99169,2016.5,2016.4,0.00744491]
[1743075921820,2.47936,2016.4,2015.7,3.8928]
[1743075922021,2.47961,2016.2,2015.8,41.79199]
[1743075922221,0.99197,2016.0,2015.9,0.99195]
[1743075922427,0.99196,2016.0,2015.9,0.99194]
[1743075922623,1.3383,2016.0,2015.9,41.79199]
[1743075922820,3.396,2016.1,2016.0,0.99194]
[1743075923621,3.2078,2016.6,2016.5,0.99169]
[1743075923829,3.397,2016.6,2016.5,0.99169]
[1743075924335,4.38864,2016.6,2016.5,0.99169]
[1743075925830,3.397,2016.6,2016.5,0.99169]
[1743075926128,4.38864,2016.6,2016.5,0.99169]
[1743075926327,4.7701,2016.6,2016.5,0.99169]
[1743075927327,3.397,2016.6,2016.5,0.99169]
[1743075927532,5.74976,2016.8,2016.4,2.4793]
[1743075927721,5.74975,2016.8,2016.7,0.9916]
[1743075928125,0.99162,2016.7,2016.6,0.9916]
[1743075928632,2.35778,2016.8,2016.7,0.9916]
[1743075929229,1.3662,2016.8,2016.7,0.9916]
[1743075929730,0.00744491,2016.9,2016.8,0.99155]
[1743075931230,3.2078,2017.5,2017.4,0.99121]
[1743075931231,3.392,2017.5,2017.4,0.99121]
[1743075931422,4.7955,2017.5,2017.4,0.99121]
[1743075931733,1.4035,2017.5,2017.4,0.99121]
[1743075932230,2.3947,2017.5,2017.4,0.99121]
[1743075932430,1.4035,2017.5,2017.4,0.99121]
[1743075933129,0.99858491,2017.7,2017.3,2.47826]
[1743075933338,2.43368491,2017.7,2017.6,0.99115]
[1743075934037,1.44254491,2017.7,2017.6,0.99115]
[1743075934421,2.43364491,2017.7,2017.6,0.99115]
[1743075934828,1.44254491,2017.7,2017.6,2.31685]
[1743075935031,2.43364491,2017.7,2017.6,1.3257]
[1743075935530,2.43364491,2017.7,2017.6,2.31685]
[1743075935736,0.99115,2017.6,2017.5,1.63977]
[1743075935942,2.43368491,2017.7,2017.6,0.99115]
[1743075936236,0.9913,2017.3,2017.2,0.00744491]
[1743075936530,0.9913,2017.3,2017.2,0.99879491]
[1743075936735,5.68843,2017.5,2017.4,0.99125]
[1743075936931,1.2982,2017.5,2017.4,0.99125]
[1743075937128,6.61224491,2017.7,2017.6,0.99115]
[1743075937328,11.51475,2018.4,2017.5,4.5121]
[1743075937528,1.2982,2018.1,2017.9,0.99098]
[1743075938025,0.99096,2018.0,2017.9,0.99101]
[1743075938229,0.99101,2017.9,2017.8,0.99103]
[1743075938529,2.28922,2017.9,2017.7,5.50319]
[1743075938729,1.2982,2017.9,2017.7,5.50319]
[1743075939029,2.28921,2017.9,2017.7,5.50319]
[1743075939629,1.2982,2017.9,2017.8,0.99105]
[1743075940637,1.2982,2017.9,2017.8,1.68715]
[1743075943140,0.99839491,2018.1,2018.0,0.99096]
[1743075943436,0.00744491,2018.1,2018.0,0.99096]
[1743075943838,0.99835491,2018.1,2018.0,0.99096]
[1743075944239,0.00744491,2018.1,2018.0,0.99096]
[1743075944835,0.00744491,2018.1,2018.0,4.19876]
[1743075945138,2.36435491,2018.1,2018.0,4.19876]
[1743075945338,1.37344491,2018.1,2018.0,4.19876]
[1743075948042,0.00744491,2018.1,2018.0,4.19876]
[1743075948642,1.31624491,2018.1,2018.0,4.19876]
[1743075949342,4.52404491,2018.1,2017.7,3.2078]
[1743075949541,0.99105,2017.9,2017.8,0.99102]
[1743075949940,0.99105,2017.8,2017.7,4.19886]
[1743075951537,2.29985,2017.9,2017.8,0.99105]
[1743075952238,2.47764,2017.8,2017.3,2.47826]
[1743075952438,4.6418,2017.7,2017.6,0.99115]
[1743075952734,3.1383,2018.0,2017.6,0.99115]
[1743075952735,0.99097,2018.0,2017.9,0.99101]
[1743075952941,2.42497,2018.0,2017.9,0.99101]
[1743075953547,0.00744491,2018.1,2018.0,0.99096]
[1743075954235,2.40525491,2018.1,2018.0,0.99096]
[1743075954637,0.99101,2018.0,2017.9,0.99097]
[1743075954845,1.4069,2018.0,2017.9,0.99097]
[1743075955050,2.39786,2018.0,2017.9,0.99097]
[1743075960550,0.99104,2017.9,2017.8,0.99101]
[1743075960752,2.39164,2017.9,2017.8,0.99101]
[1743075961242,1.4006,2017.9,2017.6,40.8]
[1743075961444,0.9912,2017.5,2017.4,2.1006]
[1743075961741,0.9913,2017.3,2017.2,0.00744491]
[1743075962042,4.1991,2017.3,2017.2,0.00744491]
[1743075962453,5.5997,2017.3,2017.2,0.00744491]
[1743075964148,6.65755932,2017.3,2017.2,0.00744491]
[1743075964550,5.5997,2017.3,2017.2,0.00744491]
[1743075967048,5.5997,2017.3,2016.9,3.2078]
[1743075967049,0.99145,2017.0,2016.9,3.2078]
[1743075967539,0.99145,2017.0,2016.9,4.1993]
[1743075967743,2.32125,2017.0,2016.9,4.1993]
[1743075968146,2.32125,2017.0,2016.9,3.2078]
[1743075968652,2.32125,2017.0,2016.9,4.1993]
[1743075968849,1.3298,2017.0,2016.9,4.1993]
[1743075969052,2.32125,2017.0,2016.9,4.1993]
[1743075969559,1.3298,2017.0,2016.9,4.1993]
[1743075971443,1.3677,2017.4,2017.0,2.47857]
[1743075971650,1.65528,2017.4,2017.1,2.425]
[1743075971856,1.65528,2017.4,2017.3,0.9913]
[1743075972249,0.664,2017.4,2017.3,0.9913]
[1743075972751,4.19897,2017.6,2017.5,0.9912]
[1743075973253,0.9912,2017.5,2017.4,2.32281]
[1743075974950,2.47822,2017.4,2016.9,3.2078]
[1743075975146,0.99145,2017.0,2016.9,5.49797]
[1743075975349,0.99145,2017.0,2016.9,4.5065]
[1743075975544,0.99145,2017.0,2016.9,3.2078]
[1743075975750,3.379,2017.1,2016.8,0.6782]
[1743075975751,0.9915,2016.9,2016.8,0.6782]
[1743075976558,0.9915,2016.9,2016.8,1.66975]
[1743075978253,0.9915,2016.9,2016.8,0.6782]
[1743075978458,0.99155,2016.8,2016.7,0.00744491]
[1743075978656,8.94845,2016.8,2016.7,0.00744491]
[1743075978857,7.9569,2016.8,2016.3,0.99178]
[1743075979157,0.99164,2016.6,2016.5,40.8]
[1743075979548,0.99169,2016.5,2016.4,0.99174]
[1743075979954,0.99169,2016.5,2016.4,41.79174]
[1743075980151,0.99168,2016.6,2016.5,0.99165]
[1743075980349,0.99168,2016.6,2016.5,2.42715]
[1743075980756,0.99164,2016.7,2016.6,0.9916]
[1743075980956,0.99164,2016.6,2016.5,2.42716]
[1743075981155,4.0463,2016.8,2016.6,0.9916]
[1743075981156,0.99163,2016.7,2016.6,0.9916]
[1743075981358,4.0463,2016.8,2016.5,1.4355]
[1743075981559,0.99164,2016.7,2016.6,0.99161]
[1743075982960,0.99164,2016.6,2016.5,2.42715]
[1743075984058,0.99196,2016.1,2016.0,0.99191]
[1743075984366,0.99196,2016.1,2016.0,41.79191]
[1743075984559,0.99188,2016.2,2016.0,40.8]
[1743075984765,2.40249,2016.1,2016.0,41.79191]
[1743075984964,1.4106,2016.1,2016.0,41.79191]
[1743075985162,0.99185,2016.2,2016.1,0.99189]
[1743075985464,1.4106,2016.2,2016.1,0.99189]
[1743075985662,0.9917,2016.6,2016.2,2.47961]
[1743075985866,1.4106,2016.5,2016.4,0.99174]
[1743075986161,2.40231,2016.5,2016.4,0.99174]
[1743075986760,3.383,2016.6,2016.5,0.99169]
[1743075986761,4.37467,2016.6,2016.5,0.99169]
[1743075986965,3.383,2016.6,2016.5,0.99169]
[1743075987166,0.99164,2016.6,2016.5,0.99169]
[1743075987469,0.99174,2016.5,2016.4,0.9917]
[1743075988965,2.42724,2016.5,2016.4,0.9917]
[1743075990969,1.4355,2016.5,2016.4,0.9917]
[1743075991167,2.42719,2016.5,2016.4,0.9917]
[1743075995575,0.99183,2016.3,2016.2,0.99176]
[1743075996169,2.35863,2016.3,2016.2,0.99176]
[1743075996376,2.35859,2016.3,2016.2,0.99176]
[1743075996583,1.3668,2016.3,2016.2,0.99176]
[1743075996768,3.36,2016.4,2016.3,0.99179]
[1743075996769,4.35176,2016.4,2016.3,0.99179]
[1743075997073,5.65356,2016.4,2016.3,0.99179]
[1743075997969,5.65354,2016.4,2016.3,0.99179]
[1743075998778,2.29354,2016.4,2016.3,0.99179]
[1743075998964,1.3018,2016.4,2016.3,0.99179]
[1743075999170,2.29354,2016.4,2016.3,0.99179]
[1743075999370,1.3018,2016.4,2016.3,0.99179]
[1743076001581,2.29354,2016.4,2016.3,0.99179]
[1743076002377,0.99183,2016.3,2016.2,0.99179]
[1743076002572,2.29973,2016.3,2016.2,0.99179]
[1743076002775,2.97063,2016.3,2016.2,0.99179]
[1743076002970,5.3308,2016.3,2015.8,8.468]
[1743076003176,0.99199,2016.0,2015.9,0.99195]
[1743076003777,3.2078,2016.8,2016.0,4.95967]
[1743076003980,0.99174,2016.5,2016.4,0.99169]
[1743076004777,1.3079,2016.6,2016.5,0.99169]
[1743076005077,2.29954,2016.6,2016.5,0.99169]
[1743076005688,2.29954,2016.6,2016.5,1.67089]
[1743076007274,2.47933,2016.5,2016.2,3.2078]
[1743076007482,5.00438,2016.4,2016.3,0.99177]
[1743076007780,6.30268,2016.4,2016.3,0.99177]
[1743076007977,4.6583,2016.4,2016.3,0.99177]
[1743076008181,4.6583,2016.4,2016.3,2.38697]
[1743076008782,1.2983,2016.4,2016.3,2.38697]
[1743076009588,3.7777,2016.4,2016.0,41.7919]
[1743076009788,6.5526,2016.3,2015.8,2.0824]
[1743076009991,7.8857,2016.3,2016.0,0.99194]
[1743076010186,1.3331,2016.2,2015.9,0.99195]
[1743076010381,0.99194,2016.0,2015.9,2.38875]
[1743076010582,0.99194,2016.0,2015.9,2.38877]
[1743076010983,0.99204,2015.8,2015.7,40.8]
[1743076011585,1.67714,2015.8,2015.7,40.8]
[1743076011778,1.67714,2015.8,2015.7,41.79209]
[1743076011985,1.3331,2015.9,2015.8,0.99204]
[1743076012490,1.3331,2015.9,2015.8,41.79204]
[1743076012685,1.3331,2015.9,2015.8,43.15384]
[1743076013979,0.00744491,2016.0,2015.9,0.99199]
[1743076014186,0.00744491,2016.0,2015.9,2.35379]
[1743076014799,0.00744491,2016.0,2015.9,43.15379]
[1743076017182,0.00744491,2016.0,2015.9,46.36159]
[1743076017390,0.99172,2016.5,2016.2,0.99184]
[1743076017589,2.29702,2016.5,2016.4,0.99174]
[1743076017994,1.3053,2016.5,2016.4,2.35374]
[1743076019299,2.29699,2016.5,2016.4,1.362]
[1743076019599,0.99174,2016.4,2016.3,1.68174]
[1743076019901,2.38764,2016.4,2016.3,3.04374]
[1743076020088,2.38764,2016.4,2016.3,2.052]
[1743076020287,0.99179,2016.3,2016.2,3.21524491]
[1743076020590,2.38769,2016.3,2016.2,4.20708491]
[1743076021192,2.38769,2016.3,2016.2,3.21524491]
[1743076021989,3.08969,2016.3,2016.2,3.21524491]
[1743076022187,3.08969,2016.3,2015.7,3.17481]
[1743076022188,0.99208,2015.8,2015.7,0.99206]
[1743076022394,0.99193,2016.1,2016.0,0.99191]
[1743076022588,1.706196,2016.2,2016.1,0.99189]
[1743076022797,1.057296,2016.2,2016.1,4.19969]
[1743076023000,3.2078,2016.4,2016.3,0.99179]
[1743076023193,4.19954,2016.4,2016.3,0.99179]
[1743076023394,3.2078,2016.4,2016.3,0.99179]
[1743076023590,4.19954,2016.4,2016.3,0.99179]
[1743076024303,0.99179,2016.3,2016.2,0.9918]
[1743076024499,3.11329,2016.3,2016.2,0.9918]
[1743076024696,2.1215,2016.3,2016.2,0.9918]
[1743076024896,3.11329,2016.3,2016.2,0.9918]
[1743076025801,2.1215,2016.3,2016.2,0.9918]
[1743076026103,2.41149,2016.3,2016.2,2.315]
[1743076026700,3.2078,2016.4,2016.2,2.315]
[1743076026907,3.2078,2016.4,2016.3,2.33599]
[1743076027407,4.19954,2016.4,2016.3,2.33599]
[1743076028310,0.99184,2016.3,2016.2,0.99181]
[1743076028503,2.34974,2016.3,2016.2,0.99181]
[1743076028697,2.34974,2016.3,2016.2,2.33601]
[1743076029609,1.3579,2016.3,2016.0,0.6569]
[1743076029804,3.9069,2016.4,2015.8,5.54399]
[1743076029805,0.99199,2015.9,2015.8,5.54399]
[1743076030201,0.99199,2015.9,2015.8,2.33619]
[1743076030508,0.99199,2015.9,2015.8,2.33624]
[1743076030705,2.40119,2015.9,2015.8,2.33624]
[1743076030903,1.4092,2015.9,2015.8,2.33624]
[1743076031107,0.99189,2016.2,2016.1,0.99184]
[1743076031912,0.99182,2016.3,2016.2,0.99179]
[1743076032411,2.40102,2016.3,2016.2,0.99179]
[1743076032711,0.99184,2016.2,2016.1,2.38835]
[1743076032905,2.40104,2016.2,2016.1,2.38835]
[1743076034598,2.40104,2016.2,2015.8,0.99201]
[1743076034599,0.99204,2015.9,2015.8,0.99201]
[1743076034803,0.99198,2016.0,2015.9,0.99194]
[1743076035013,2.34948,2016.0,2015.9,2.34884]
[1743076035910,1.3575,2016.0,2015.7,40.8]
[1743076036206,0.99198,2016.0,2015.9,3.05319]
[1743076036605,0.99198,2016.0,2015.9,2.0612]
[1743076036808,0.99198,2016.0,2015.9,0.7106]
[1743076036998,0.99198,2016.0,2015.9,0.99199]
[1743076037199,0.99199,2015.9,2015.8,3.01161]
[1743076037398,0.99204,2015.8,2015.7,0.99206]
[1743076038006,1.63868,2016.0,2015.9,0.99199]
[1743076038707,0.99199,2015.9,2015.8,0.992]
[1743076038909,0.99204,2015.8,2015.7,3.01165]
[1743076039108,0.99228,2015.4,2015.3,0.99224]
[1743076039314,0.99228,2015.4,2015.3,2.38414]
[1743076040218,0.65564491,2015.6,2015.3,47.88037]
[1743076040407,0.65564491,2015.6,2015.3,40.8]
[1743076040714,0.6707,2015.5,2015.2,1.3919]
[1743076040915,0.99228,2015.4,2015.3,0.99226]
[1743076041815,0.99228,2015.3,2015.2,43.18419]
[1743076042007,0.99228,2015.3,2015.2,40.8]
[1743076042408,0.99228,2015.3,2015.2,41.79233]
[1743076043015,0.99228,2015.3,2015.2,40.8]
[1743076044202,2.48066,2015.4,2015.0,2.33402]
[1743076044408,0.99237,2015.2,2015.0,1.3416]
[1743076044611,0.99237,2015.2,2015.1,2.33398]
[1743076044810,0.99232,2015.3,2015.2,0.9923]
[1743076045108,0.99222,2015.5,2015.4,0.99221]
[1743076045516,0.65564491,2015.6,2015.3,0.6895]
[1743076045517,0.99223,2015.4,2015.3,3.05336]
[1743076045909,0.99223,2015.4,2015.3,1.68176]
[1743076046309,0.99223,2015.4,2015.3,0.6895]
[1743076046508,0.99223,2015.4,2015.3,1.68178]
[1743076047516,0.99233,2015.2,2015.1,40.8]
[1743076047817,2.48078,2015.3,2014.9,1.68197]
[1743076048025,0.99238,2015.1,2015.0,0.9924]
[1743076048214,0.6645,2015.2,2015.1,0.99238]
[1743076048411,0.9923,2015.3,2015.2,0.99229]
[1743076048721,0.9923,2015.3,2015.2,1.3935]
[1743076049112,0.9923,2015.3,2015.1,0.99236]
[1743076049310,0.99238,2015.1,2015.0,5.5937]
[1743076049513,0.99238,2015.1,2015.0,3.2078]
[1743076049713,2.48075,2015.3,2015.0,3.2078]
[1743076049714,0.99233,2015.3,2015.0,3.2078]
[1743076049913,0.99227,2015.4,2015.3,0.99228]
[1743076050114,1.65673,2015.5,2015.4,0.99223]
[1743076050421,0.99226,2015.4,2015.3,0.99225]
[1743076050613,1.65672,2015.5,2015.4,0.99223]
[1743076050814,0.99225,2015.4,2015.3,0.99225]
[1743076051014,0.99225,2015.4,2015.3,2.38575]
[1743076051419,1.65671,2015.5,2015.4,0.99223]
[1743076051625,1.65671,2015.5,2015.4,2.35653]
[1743076052826,0.99237,2015.2,2015.1,0.99237]
[1743076053220,3.2078,2015.4,2015.0,44.0078]
[1743076053525,0.99231,2015.3,2015.2,0.99231]
[1743076053721,0.99232,2015.3,2015.2,0.99232]
[1743076054023,0.99233,2015.2,2015.1,2.35666]
[1743076054220,0.99233,2015.2,2015.1,1.3643]
[1743076054412,0.99238,2015.1,2015.0,44.0078]
[1743076054616,2.36118,2015.1,2015.0,44.0078]
[1743076054817,2.36118,2015.1,2015.0,45.00023]
[1743076055017,1.3688,2015.1,2015.0,45.00023]
[1743076055218,2.36118,2015.1,2015.0,45.00023]
[1743076055623,1.3688,2015.1,2015.0,45.00023]
[1743076056023,2.36118,2015.1,2015.0,40.8]
[1743076056322,0.99253,2014.8,2014.7,4.20038]
[1743076056723,0.99253,2014.8,2014.7,45.00038]
[1743076057125,0.99253,2014.8,2014.7,40.8]
[1743076057815,0.99253,2014.8,2014.7,41.79258]
[1743076058016,0.99253,2014.8,2014.7,42.1952]
[1743076058520,0.99253,2014.8,2014.7,43.18778]
[1743076059219,0.99253,2014.8,2014.7,42.1952]
[1743076060128,0.99253,2014.8,2014.7,43.18778]
[1743076060621,0.99253,2014.8,2014.7,42.1952]
[1743076060822,0.99253,2014.8,2014.7,43.18778]
[1743076061821,0.99267,2014.6,2014.3,5.68973]
[1743076062124,2.4277,2014.7,2014.6,0.99263]
[1743076062328,2.4277,2014.7,2014.6,41.79263]
[1743076064131,2.4277,2014.7,2014.6,40.8]
[1743076064324,1.4351,2014.7,2014.1,3.2078]
[1743076064525,1.4351,2014.7,2014.4,1.4011]
[1743076064526,0.99268,2014.5,2014.4,1.4011]
[1743076064831,1.3915,2014.6,2014.5,0.99268]
[1743076065030,3.2078,2014.8,2014.7,0.99258]
[1743076065218,3.2078,2014.8,2014.7,41.79258]
[1743076065219,4.20033,2014.8,2014.7,41.79258]
[1743076065622,4.20033,2014.8,2014.7,40.8]
[1743076065922,0.99258,2014.7,2014.6,0.99262]
[1743076066328,2.38408,2014.7,2014.6,41.79262]
[1743076066524,2.38408,2014.7,2014.6,0.99262]
[1743076066724,0.9927,2014.5,2014.4,0.99267]
[1743076066924,0.9927,2014.5,2014.4,2.33883]
[1743076067128,0.9927,2014.5,2014.4,43.13883]
[1743076067527,2.37697,2014.6,2014.4,40.8]
[1743076067726,2.37697,2014.6,2014.5,0.99268]
[1743076067921,0.99268,2014.5,2014.4,40.8]
[1743076068630,0.99283,2014.2,2014.1,3.01523]
[1743076068837,0.9928,2014.3,2014.2,0.99278]
[1743076069334,0.00744491,2014.4,2014.3,0.99278]
[1743076069335,1.00020491,2014.4,2014.3,0.99278]
[1743076069737,0.99283,2014.3,2014.2,0.99278]
[1743076070730,1.66603,2014.3,2014.2,0.99278]
[1743076071236,0.99282,2014.3,2014.2,0.99283]
[1743076071831,0.00744491,2014.4,2014.3,0.99278]
[1743076072026,0.00744491,2014.4,2014.3,4.20058]
[1743076074641,4.20033,2014.8,2014.7,0.99258]
[1743076075429,0.99253,2014.8,2014.7,0.99258]
[1743076076143,0.99263,2014.6,2014.5,1.00005491]
[1743076076344,0.99263,2014.6,2014.5,0.00744491]
[1743076076541,0.99262,2014.7,2014.6,0.99258]
[1743076076741,0.99263,2014.6,2014.5,1.00008491]
[1743076077649,0.99263,2014.6,2014.5,1.00012491]
[1743076078049,0.99263,2014.6,2014.5,0.00744491]
[1743076078239,0.99263,2014.6,2014.5,1.00012491]
[1743076078436,0.99263,2014.6,2014.5,0.00744491]
[1743076078636,3.49263,2014.6,2014.5,0.00744491]
[1743076078848,0.99263,2014.6,2014.5,0.00744491]
[1743076079743,2.04831586,2014.7,2014.6,0.99263]
[1743076079953,1.05569586,2014.7,2014.6,0.99263]
[1743076080344,4.20038,2014.8,2014.5,2.36329491]
[1743076080345,0.99263,2014.6,2014.5,2.36329491]
[1743076080536,0.99263,2014.6,2014.5,1.68819491]
[1743076080945,0.99263,2014.6,2014.5,1.68818491]
[1743076081145,0.99263,2014.6,2014.5,0.69554491]
[1743076081352,0.99263,2014.6,2014.5,0.00744491]
[1743076083051,1.66813,2014.6,2014.5,0.00744491]
[1743076083558,3.01243,2014.6,2014.5,0.00744491]
[1743076084145,4.5198,2014.6,2014.1,0.99287]
[1743076084349,4.5198,2014.6,2014.0,3.2078]
[1743076084350,0.99283,2014.2,2014.0,3.2078]
[1743076084557,1.3443,2014.1,2014.0,4.20072]
[1743076084853,1.3443,2014.1,2014.0,5.57172]
[1743076085252,1.3443,2014.1,2014.0,46.37172]
[1743076085651,0.99276,2014.4,2014.0,46.37172]
[1743076085956,2.28665,2014.4,2014.3,0.99278]
[1743076086158,1.2939,2014.4,2014.3,0.99278]
[1743076087055,1.2939,2014.4,2014.3,2.36378]
[1743076088058,1.2939,2014.4,2014.3,5.57158]
[1743076088354,0.99278,2014.3,2014.2,1.70701]
[1743076088657,0.99278,2014.3,2014.2,3.12101]
[1743076089560,2.28667,2014.4,2014.3,0.99278]
[1743076089759,2.28667,2014.4,2014.3,1.414]
[1743076089949,2.28667,2014.4,2014.0,3.2078]
[1743076089950,1.2939,2014.4,2014.0,3.2078]
[1743076090256,0.99288,2014.1,2014.0,3.2078]
[1743076090453,0.99285,2014.2,2014.1,0.99284]
[1743076090644,2.32315,2014.2,2014.1,3.07594]
[1743076090849,2.32315,2014.2,2014.1,2.0831]
[1743076091658,2.32315,2014.2,2014.1,3.07598]
[1743076091858,2.32315,2014.2,2014.1,2.0831]
[1743076092354,2.32315,2014.2,2014.1,0.6691]
[1743076092659,0.99288,2014.1,2014.0,4.20068]
[1743076092855,2.38668,2014.1,2014.0,3.2078]
[1743076093049,2.38668,2014.1,2013.6,3.2078]
[1743076093050,0.99307,2013.7,2013.6,3.2078]
[1743076093651,0.99327,2013.3,2013.2,6.98127]
[1743076093863,0.99327,2013.3,2013.2,2.40097]
[1743076094247,0.99327,2013.4,2013.3,0.99325]
[1743076094452,2.30597,2013.4,2013.3,0.99325]
[1743076094652,1.3127,2013.4,2013.3,0.99327]
[1743076095260,1.02775783,2013.7,2013.6,0.99312]
[1743076095561,1.00044491,2013.9,2013.5,2.48286]
[1743076095766,0.00744491,2013.9,2013.8,0.99302]
[1743076095960,1.00041491,2013.9,2013.8,0.99302]
[1743076096156,0.99302,2013.8,2013.7,0.99304]
[1743076096366,2.30572,2013.8,2013.7,0.99304]
[1743076096562,1.3127,2013.8,2013.7,0.99304]
[1743076096756,1.3127,2013.8,2013.7,2.40834]
[1743076097654,1.70864491,2013.9,2013.8,0.99302]
[1743076097655,0.00744491,2013.9,2013.8,0.99302]
[1743076097855,0.00744491,2013.9,2013.8,3.06572]
[1743076099564,0.99302,2013.8,2013.7,4.20083]
[1743076099763,3.06922,2013.8,2013.7,4.20083]
[1743076100268,3.06922,2013.8,2013.7,5.61473]
[1743076100460,1.3744,2013.8,2013.7,5.61473]
[1743076101666,2.36742,2013.8,2013.7,5.61473]
[1743076102266,1.3744,2013.8,2013.7,5.61473]
[1743076104069,2.36742,2013.8,2013.7,5.61473]
[1743076104954,1.3744,2013.8,2013.7,5.61473]
[1743076105362,0.00744491,2013.9,2013.7,4.6217]
[1743076105557,0.00744491,2013.9,2013.8,3.04832]
[1743076105757,1.05508758,2014.7,2014.5,0.99264]
[1743076105964,0.99265,2014.6,2014.5,0.99264]
[1743076106158,0.99268,2014.5,2014.4,0.6868]
[1743076106365,0.99268,2014.5,2014.2,0.7108]
[1743076106366,0.99283,2014.3,2014.2,0.9928]
[1743076106663,4.90223,2014.4,2014.3,0.99278]
[1743076106867,3.9095,2014.4,2014.0,0.00744491]
[1743076107162,0.99307,2013.7,2013.6,4.20088]
[1743076107369,0.99306,2013.8,2013.7,0.99305]
[1743076107665,5.69001,2014.1,2013.6,4.5547]
[1743076107666,3.01901,2013.9,2013.8,0.99302]
[1743076108268,2.026,2013.9,2013.8,0.99302]
[1743076108663,1.3765,2013.9,2013.8,0.99302]
[1743076109871,1.3765,2013.9,2013.6,3.2078]
[1743076110068,0.99307,2013.8,2013.7,0.99305]
[1743076110573,0.99307,2013.7,2013.6,5.55189]
[1743076110868,3.05517,2013.7,2013.6,5.55189]
[1743076111070,0.99322,2013.5,2013.4,0.99318]
[1743076111372,1.3682,2013.6,2013.4,0.652]
[1743076111566,1.3682,2013.6,2013.5,0.99317]
[1743076111567,2.36137,2013.6,2013.5,0.99317]
[1743076111763,0.99317,2013.5,2013.4,2.99618]
[1743076111968,2.38487,2013.5,2013.4,2.99618]
[1743076112268,1.3917,2013.5,2013.2,3.2078]
[1743076112570,2.38497,2013.4,2013.3,0.99322]
[1743076112772,2.38497,2013.4,2013.3,41.79322]
[1743076113371,2.38497,2013.4,2013.3,43.17092]
[1743076113567,2.38497,2013.4,2013.3,41.79322]
[1743076113870,1.3917,2013.4,2013.3,43.17092]
[1743076114774,0.6939,2013.7,2013.6,0.99312]
[1743076114973,1.68697,2013.7,2013.6,0.99312]
[1743076115677,1.68697,2013.7,2013.6,41.79312]
[1743076115975,0.99304,2013.8,2013.7,0.99301]
[1743076116164,0.99304,2013.8,2013.7,1.65991]
[1743076116165,1.3515,2013.8,2013.7,1.65991]
[1743076116366,2.34452,2013.8,2013.7,3.00801]
[1743076116873,1.3515,2013.8,2013.7,3.00801]
[1743076117773,1.3515,2013.8,2013.7,3.67371]